Cogmind - Beta 16 @@@ ROGUE MODE // 2025.11.20 @ 20:20:11 Player: tthaar Result: Destroyed by S-27 Virus with Autogun Performance ------------- Evolutions (6) 3000 Regions Visited (13) 2600 Robots Destroyed (54) 270 Value Destroyed (1790) 1790 Prototype IDs (4) 80 Alien Tech Used (0) 0 Bonus (1131) 1131 TOTAL SCORE: 8871 Bonus ------- Follower Combat Kills 483 Entered DSFs 500 Aligned with FarCom 300 Friendly Fire -152 Cogmind --------- Core Integrity 0/1150 Matter 291/300 Energy 99/100 System Corruption 31% Temperature Cool (0) Movement Core (50) Location -4/Factory Parts ------- > --- POWER (2) -------- (None) > --- PROPULSION (4) --- (None) > --- UTILITY (8) ------ (None) > --- WEAPON (5) ------- (None) > --- INVENTORY (5) ---- Large Matter Pod (150) Layered Medium Armor Plating Improved System Restoration Module Heavy Machine Gun Peak State ------------ > --- POWER ------------ Micro Nuclear Core Neutrino Core > --- PROPULSION ------- Armored Huge Wheel > --- UTILITY ---------- Large Matter Pod Enhanced Optical Array Advanced ECM Suite Medium Armor Plating Hacking Suite System Shield Drone Bay > --- WEAPON ----------- Gatling Laser Coil Gun Hardcell Cannon Power Sword > --- INVENTORY -------- High-capacity Storage Unit Improved System Restoration Module Heavy Ion Cannon Minigun Heavy Machine Gun [Rating: 63] Favorites ----------- Power Ion Engine Engine Ion Engine Power Core Micro Nuclear Core Reactor Quantum Reactor Propulsion Aluminum Leg Treads Light Treads Leg Aluminum Leg Wheel Armored Huge Wheel Utility Small Storage Unit Device Drone Bay Storage Small Storage Unit Processor Enhanced Optical Array Hackware System Shield Protection Medium Armor Plating Weapon Gatling Laser Energy Gun Gatling Laser Energy Cannon Heavy Ion Cannon Ballistic Gun Coil Gun Ballistic Cannon Hardcell Cannon Launcher Rocket Launcher Special Weapon Plasma Cutter Impact Weapon Powered Hammer Slashing Weapon Power Sword Build | -11 -10 -10 -10 -9 -8 -7 -7 -7 -7 -6 -5 -5 -4 ------- Run | Yrd Mat Min Exi Min Mat Fac Was Fac DSF Fac Fac Ext Fac Slots Evolved 12 | . . . . . 4 2 . . . 2 2 . 2 Power 1 | . . . . . . . . . . 1 . . . Propulsion 2 | . . . . . 1 . . . . . 1 . . Utility 6 | . . . . . 2 1 . . . 1 1 . 1 Weapon 3 | . . . . . 1 1 . . . . . . 1 Parts Attached 84 | 7 1 . . 2 9 9 . 6 6 10 2 13 19 Power 11 | 1 . . . . . 1 . . . 2 1 2 4 Engine 4 | 1 . . . . . 1 . . . 1 . 1 . Core 6 | . . . . . . . . . . 1 . 1 4 Reactor 1 | . . . . . . . . . . . 1 . . Propulsion 10 | 2 . . . . 3 1 . 1 . . . 2 1 Treads 5 | . . . . . 3 1 . . . . . . 1 Leg 2 | 2 . . . . . . . . . . . . . Wheel 3 | . . . . . . . . 1 . . . 2 . Hover . | . . . . . . . . . . . . . . Flight . | . . . . . . . . . . . . . . Utility 29 | 2 1 . . . 3 4 . 1 4 5 1 5 3 Device 10 | 1 . . . . 1 3 . 1 . 1 . 2 1 Storage 4 | 1 . . . . . . . . . 1 . 2 . Processor 3 | . . . . . 1 1 . . . 1 . . . Hackware 2 | . . . . . . . . . . 1 1 . . Protection 10 | . 1 . . . 1 . . . 4 1 . 1 2 Artifact . | . . . . . . . . . . . . . . Weapon 34 | 2 . . . 2 3 3 . 4 2 3 . 4 11 Energy Gun 8 | 2 . . . . 1 1 . . . 1 . 1 2 Energy Cannon 1 | . . . . . . . . . . . . . 1 Ballistic Gun 10 | . . . . . 1 2 . . 2 1 . 2 2 Ballistic Cannon 2 | . . . . . 1 . . . . 1 . . . Launcher 1 | . . . . 1 . . . . . . . . . Special Weapon 1 | . . . . 1 . . . . . . . . . Impact Weapon 5 | . . . . . . . . 4 . . . . 1 Slashing Weapon 6 | . . . . . . . . . . . . 1 5 Piercing Weapon . | . . . . . . . . . . . . . . Special Melee Weapon . | . . . . . . . . . . . . . . Unidentified Prototypes 2 | . . . . . 1 . . . . . . . 1 Corrupted Parts 1 | . . . . . . . . . . . . 1 . System Corruption 12 | . . . . . . . . . . . . 12 . Parts Lost 48 | . 1 . . . 2 1 6 . 2 . . 9 27 Power 8 | . . . . . . 1 . . . . . 2 5 Propulsion 5 | . . . . . . . 2 . . . . 1 2 Utility 14 | . 1 . . . . . 2 . 1 . . 3 7 Weapon 21 | . . . . . 2 . 2 . 1 . . 3 13 Highest Loss Streak 13 | . 1 . . . 1 1 6 . 2 . . 9 13 To Critical Strikes 2 | . . . . . . . . . . . . . 2 Average Backups 6 | 3 6 8 8 8 7 7 6 5 5 3 5 4 4 Power . | . 1 1 1 1 . . . . . . . . . Propulsion . | 1 2 2 2 2 1 . 1 1 1 . 1 . . Utility 1 | . 1 2 2 2 2 3 2 2 2 . . 1 3 Weapon 2 | . 2 3 3 2 2 2 2 2 2 2 4 3 1 Tool/Special . | . . . . . . . . . . . . . . Unused Backups 10 | . . . 1 2 1 2 2 . . 1 . . 1 Power 2 | . . . 1 . 1 . . . . . . . . Propulsion . | . . . . . . . . . . . . . . Utility 4 | . . . . 1 . . 1 . . 1 . . 1 Weapon 4 | . . . . 1 . 2 1 . . . . . . Tool/Special . | . . . . . . . . . . . . . . Average Slot Usage (%) 77 | . 99 100 100 100 87 96 68 32 37 50 73 76 31 Engine 6 | . 14 14 14 14 9 5 5 . . 2 5 4 . Core 1 | . . . . . . . . . . . 5 4 1 Treads 4 | . . . . . 12 23 15 . . . . . . Leg 8 | . 28 28 28 28 9 . . . . . . . . Wheel 2 | . . . . . . . . 6 7 6 5 4 2 Device 5 | . 6 . . . 7 13 10 6 3 2 5 9 1 Storage 7 | . 14 14 14 14 9 7 5 . . 5 5 4 3 Processor 3 | . . . . . 3 8 5 . . 3 5 4 . Hackware 3 | . . . . . . . . . . 2 8 11 2 Protection 7 | . 7 14 14 14 9 5 4 . 2 5 5 4 3 Energy Gun 9 | . 28 28 28 8 7 7 5 . . 5 5 4 1 Ballistic Gun 3 | . . . . . 5 6 4 . 9 . 5 4 1 Ballistic Cannon 3 | . . . . . 4 7 4 . . 5 5 4 . Launcher 2 | . . . . 7 6 6 4 . . . . . . Special Weapon 1 | . . . . 11 2 . . . . . . . . Impact Weapon 1 | . . . . . . . . 19 13 6 5 . 1 Slashing Weapon 1 | . . . . . . . . . . . . 4 8 Peak Build Rating 63 | 7 7 7 8 10 18 31 31 28 28 54 62 63 44 Average Rating 27 | 5 6 7 7 9 13 26 21 21 23 34 55 57 20 On Entrance 19 | . 7 7 7 8 10 18 31 1 28 13 54 57 35 Avg Prop Armor Cover (%) 5 | . . . . . . 5 5 . . . . . . Naked Turns 73 | . . . . . . . 56 9 . . . . 8 Heaviest Build 71 | 14 16 16 16 18 26 34 34 13 22 57 71 69 46 Greatest Support 60 | 20 20 20 20 20 60 60 60 28 28 28 28 32 32 Greatest Overweight (x) 22 | 3 . . . . 1 . 1 . . 2 2 22 11 Average Overweight (x) . | . . . . . . . . . . . 2 2 2 Largest Inventory Capacity 20 | 8 8 8 8 8 8 8 8 5 5 5 5 20 10 Average Capacity 6 | 7 8 8 8 8 8 8 7 5 5 5 5 5 8 Most Carried 8 | 5 8 8 8 8 8 8 7 5 5 5 5 6 6 Average Carried 6 | 3 6 8 8 7 7 7 6 5 5 3 5 4 4 Final Capacity 10 | 8 8 8 8 8 8 8 5 5 5 5 5 10 5 Final Carried 8 | 5 8 8 8 8 8 7 5 5 5 5 5 6 4 Class Distribution -------------------- 43% | Mutant 23% | Skirmisher 21% | Hacker-Skirmisher 7% | Scavenger-Skirmisher Dominant Class ---------------- Mutant | -10/Materials Mutant | -10/Mines Mutant | -10/Exiles Mutant | -9/Mines Skirmisher | -8/Materials Scavenger-Skirmisher | -7/Factory Skirmisher | -7/Waste Mutant | -7/Factory Mutant | -7/DSF Mutant | -6/Factory Hacker-Skirmisher | -5/Factory Hacker-Skirmisher | -5/Extension Mutant | -4/Factory Resources | -11 -10 -10 -10 -9 -8 -7 -7 -7 -7 -6 -5 -5 -4 ----------- Run | Yrd Mat Min Exi Min Mat Fac Was Fac DSF Fac Fac Ext Fac Matter Collected 2178 | 270 68 87 . 74 193 234 143 . 9 232 . 618 250 Remotely 5 | . . . . . . . . . 5 . . . . Salvage Created 2166 | 130 51 18 . 89 373 142 274 . . 208 . 290 591 Parts 99 | 10 7 . . 3 24 10 2 . . 3 . 12 28 Haulers Intercepted . | . . . . . . . . . . . . . . Recyclers Shooed 1 | . . . . . . . . . . . . . 1 Parts Field Recycled . | . . . . . . . . . . . . . . Retrieved Matter . | . . . . . . . . . . . . . . Parts Self-Destructed . | . . . . . . . . . . . . . . Prevented . | . . . . . . . . . . . . . . Parts Restored . | . . . . . . . . . . . . . . Kills | -11 -10 -10 -10 -9 -8 -7 -7 -7 -7 -6 -5 -5 -4 ------- Run | Yrd Mat Min Exi Min Mat Fac Was Fac DSF Fac Fac Ext Fac Combat Hostiles Destroyed 36 | . 3 1 . 3 9 3 1 . . 1 . 3 12 Melee 3 | . . . . . . . . . . . . . 3 Guns 20 | . 3 1 . . 4 2 . . . . . 3 7 Cannons 6 | . . . . . 2 1 . . . 1 . . 2 AOE 7 | . . . . 3 3 . 1 . . . . . . Classes Destroyed 14 | 2 1 . . 1 3 1 1 . . 2 . . 3 Worker 3 | . . . . . . . . . . . . . 3 Builder 4 | . . . . . . . . . . 3 . 1 . Tunneler 3 | 2 . . . . . . . . . 1 . . . Recycler 3 | 1 . . . . . . . . . 1 . 1 . Operator 2 | . . . . . 2 . . . . . . . . Watcher 3 | . . . . . . . . . . 2 . 1 . Swarmer 12 | . 3 1 . . . . . . . . . 1 7 Grunt 9 | . . . . 3 5 . . . . . . 1 . Brawler 1 | . . . . . . . . . . . . . 1 Duelist 1 | . . . . . . . . . . . . . 1 Sentry 6 | . . . . . 3 1 . . . . . 1 1 Hunter 2 | . . . . . 1 1 . . . . . . . Programmer 4 | . . . . . . 1 . . . 1 . . 2 Compactor 1 | . . . . . . . 1 . . . . . . Best Kill Streak 7 | 2 2 1 . 3 5 1 1 . . 1 . 2 7 Combat Bots Only 6 | . 2 1 . 3 4 1 1 . . 1 . 1 6 Max Kills in Single Turn 2 | 1 1 1 . 2 1 1 1 . . 1 . 1 1 Gunslinging . | . . . . . . . . . . . . . . Exploded 2 | . . . . 2 1 . 1 . . . . . . Melee 1 | . . . . . . . . . . . . . 1 Uniques/NPCs Destroyed . | . . . . . . . . . . . . . . Combat | -11 -10 -10 -10 -9 -8 -7 -7 -7 -7 -6 -5 -5 -4 -------- Run | Yrd Mat Min Exi Min Mat Fac Was Fac DSF Fac Fac Ext Fac Hostile Shots Fired 463 | . 7 19 . 2 34 32 7 . 42 12 . 83 225 Missed 144 | . 2 10 . 1 6 12 . . 10 5 . 22 76 Hits 319 | . 5 9 . 1 28 20 7 . 32 7 . 61 149 Melee 45 | . . . . . . . 7 . 12 . . . 26 Projectile 274 | . 5 9 . 1 28 20 . . 20 7 . 61 123 Critical Strikes 35 | . . . . . 3 1 3 . 8 1 . 4 15 Part Disruptions 2 | . . . . . . 1 . . . . . . 1 Damage Taken 7133 | . 73 67 . 46 392 189 580 . 996 175 . 1275 3340 Core 2007 | . 10 15 . . 48 21 239 . 141 24 . 359 1150 Absorbed by Shields 166 | . . . . . . . . . . . . 166 . Ignored by Resistances 13 | . . . . . . . . . . . . 6 7 Core Remaining (%) 80 | 100 . . . 90 91 . . . 42 97 . 64 . Volleys Fired 147 | 8 3 7 . 4 25 6 16 . 1 11 . 27 39 Largest 3 | 2 2 2 . 1 2 3 2 . 1 3 . 3 3 Hottest 169 | 80 80 80 . 33 93 145 70 . 28 165 . 165 169 Shots Fired 275 | 16 6 14 . 4 48 18 21 . 1 26 . 59 62 Gun 191 | 16 6 14 . . 30 12 . . 1 15 . 42 55 Cannon 59 | . . . . . 13 6 5 . . 11 . 17 7 Launcher 25 | . . . . 4 5 . 16 . . . . . . Special . | . . . . . . . . . . . . . . Kinetic 123 | . . . . . 26 12 5 . 1 15 . 36 28 Thermal 84 | 8 3 7 . . 6 6 . . . 11 . 23 20 Explosive 25 | . . . . 4 5 . 16 . . . . . . Electromagnetic 43 | 8 3 7 . . 11 . . . . . . . 14 Robot Hit Streak 14 | 4 5 4 . 5 6 11 5 . . 7 . 9 14 Robot Miss Streak 8 | 2 . 8 . . 3 1 2 . 1 5 . 5 2 Penetration Max 1 | . . . . . . . . . . . . . 1 Secondary Targets 1 | . . . . . . . . . . . . . 1 Max Gunslinging Chain 1 | . . . . . . . . . . . . . 1 Shots Hit Robots 205 | 9 4 5 . 1 30 14 13 . . 24 . 44 61 Core Hits 111 | 4 3 1 . 5 25 7 4 . 2 5 . 22 33 Critical Kills . | . . . . . . . . . . . . . . Critical Parts Destroyed 3 | . . . . . . . . . . . . . 3 Critical Strikes 7 | . . . . . 1 . . . . 1 . . 5 Burn 2 | . . . . . 1 . . . . . . . 1 Destroy 3 | . . . . . . . . . . . . . 3 Blast 1 | . . . . . . . . . . 1 . . . Sever 1 | . . . . . . . . . . . . . 1 Melee Attacks 42 | . . . . . . . . . 1 9 . 6 26 Impact 14 | . . . . . . . . . 1 9 . 2 2 Slashing 28 | . . . . . . . . . . . . 4 24 Piercing . | . . . . . . . . . . . . . . Sneak Attacks 6 | . . . . . . . . . . 4 . 2 . Combat Hostiles . | . . . . . . . . . . . . . . Follow-up Attacks 2 | . . . . . . . . . . . . . 2 Damage Inflicted 7277 | 111 43 57 . 204 1068 311 1289 . 23 983 . 1457 1731 Guns 2375 | 111 43 57 . . 225 228 . . 17 192 . 766 736 Cannons 1137 | . . . . . 196 83 66 . . 196 . 407 189 Explosions 2325 | . . . . 200 645 . 1223 . . . . . 257 Melee 1426 | . . . . . . . . . . 595 . 284 547 Ramming 14 | . . . . 4 2 . . . 6 . . . 2 Kinetic 1941 | . . . . . 269 177 66 . 17 224 . 755 433 Thermal 1387 | 45 11 34 . . 94 134 . . . 164 . 418 487 Explosive 2048 | . . . . 200 625 . 1223 . . . . . . Electromagnetic 461 | 66 32 23 . . 78 . . . . . . . 262 Impact 667 | . . . . . . . . . . 595 . . 72 Slashing 759 | . . . . . . . . . . . . 284 475 Piercing . | . . . . . . . . . . . . . . Highest Corruption 31 | . 1 1 1 1 . 1 16 16 16 2 . 12 31 Average Corruption 7 | . 1 1 1 1 . 1 11 16 16 1 . 12 24 Corruption Purged . | . . . . . . . . . . . . . . Corruption Blocked . | . . . . . . . . . . . . . . Effects 63 | . . . 7 3 . 1 8 4 7 2 . 3 28 Message Errors 16 | . . . 2 2 . . 2 1 2 1 . . 6 Matter Fused 9 | . . . 1 . . 1 1 . . 1 . 1 4 Heat Flow Errors 4 | . . . 1 . . . . 1 . . . . 2 Energy Discharges 7 | . . . . . . . 1 . 2 . . 1 3 Parts Rejected 2 | . . . . . . . . . . . . . 2 Parts Fused 1 | . . . . . . . . . . . . . 1 Data Loss (minor) 10 | . . . . . . . 2 . 2 . . 1 5 Data Loss (major) 5 | . . . 2 1 . . . 2 . . . . . Misfires 1 | . . . . . . . 1 . . . . . . Alerts 2 | . . . 1 . . . . . . . . . 1 Misdirections 4 | . . . . . . . 1 . 1 . . . 2 Weapon Failures 2 | . . . . . . . . . . . . . 2 Overload Shots . | . . . . . . . . . . . . . . Overflow Damage 552 | . . . . . 88 . . . . 390 . 60 14 Projectiles 33 | . . . . . . . . . . 33 . . . Explosions 88 | . . . . . 88 . . . . . . . . Melee 431 | . . . . . . . . . . 357 . 60 14 Knockbacks 4 | . . . . . 1 . . . . 3 . . . Impact 1 | . . . . . . . . . . 1 . . . Kinetic 3 | . . . . . 1 . . . . 2 . . . Secondary . | . . . . . . . . . . . . . . Self-Inflicted Damage 393 | . . . . 37 . . 277 . 3 . . . 76 Shots 11 | . . . . 1 . . 7 . . . . . 3 Rammed 5 | . . . . . 1 . . . 1 . . . 3 Targets Rammed 6 | . . . . 1 1 . . . 1 . . . 3 Kicked 1 | . . . . 1 . . . . . . . . . Crushed . | . . . . . . . . . . . . . . Highest Temperature 638 | 90 54 189 267 5 14 15 . 253 . 270 . 638 169 Average Temperature 115 | 37 25 95 136 3 9 9 . 134 . 96 . 190 68 Received Heat Transfer 849 | . . . . 6 171 30 . . . . . 525 117 Effects 10 | . . . . . . . . . . . . 10 . Shutdowns 4 | . . . . . . . . . . . . 4 . Energy Bleed 3 | . . . . . . . . . . . . 3 . Matter Decay 1 | . . . . . . . . . . . . 1 . Short Circuit 1 | . . . . . . . . . . . . 1 . Damage (minor) 1 | . . . . . . . . . . . . 1 . Siege Activations . | . . . . . . . . . . . . . . Martial Activations . | . . . . . . . . . . . . . . Shielding Activations . | . . . . . . . . . . . . . . Robots Disrupted 1 | . . . . . . . . . . . . . 1 Combat Hostiles 1 | . . . . . . . . . . . . . 1 Robots Corrupted 1 | . . . . . . . . . . 1 . . . Combat Hostiles . | . . . . . . . . . . . . . . Parts Fried 10 | . . . . . . . . . . 8 . . 2 Impact Corruptions 12 | . . . . . . . . . . 11 . . 1 Robots Melted . | . . . . . . . . . . . . . . Combat Hostiles . | . . . . . . . . . . . . . . Parts Melted 7 | . . . . . 2 . . . . . . 1 4 Heat Transferred 2773 | 100 25 75 . . 309 299 . . . 350 . 873 742 Parts Sabotaged . | . . . . . . . . . . . . . . Parts Stolen . | . . . . . . . . . . . . . . Parts Stripped . | . . . . . . . . . . . . . . Power Chain Reactions 3 | . . . . . 1 . . . . . . . 2 Alert | -11 -10 -10 -10 -9 -8 -7 -7 -7 -7 -6 -5 -5 -4 ------- Run | Yrd Mat Min Exi Min Mat Fac Was Fac DSF Fac Fac Ext Fac Maximum Alert Level 1 | . . . . . . . . . . . . 1 . Low Security (%) 99 | 100 100 100 . 100 100 100 100 100 100 100 100 97 100 Level 1 . | . . . . . . . . . . . . 2 . Level 2 . | . . . . . . . . . . . . . . Level 3 . | . . . . . . . . . . . . . . Level 4 . | . . . . . . . . . . . . . . Level 5 . | . . . . . . . . . . . . . . High Security . | . . . . . . . . . . . . . . Max Security . | . . . . . . . . . . . . . . Peak Influence 207 | 10 65 30 . 101 189 47 21 . 15 39 6 207 198 Initial 95 | . . . . . 35 43 8 . . . 6 . 95 Average 14 | 1 19 2 . 5 15 10 2 . 7 3 . 20 49 Influence Increases 1712 | 15 90 30 . 109 366 144 56 . 15 100 . 438 349 Destroy 0b10 Robot/C 940 | . 60 20 . 60 180 60 . . . 20 . 300 240 Destroy 0b10 Robot/NC 95 | 15 . . . . 10 . . . . 35 . 20 15 Destroy Leader 208 | . 10 10 . 10 60 30 . . . 14 . 34 40 Allied During Kill 41 | . . . . . . . . . . . . 41 . Successful Hack 95 | . 5 . . . 28 38 . . . 12 . 12 . Disable Machine 150 | . . . . 15 60 15 . . . 15 . 15 30 Destroy Structure 153 | . . . . 24 28 1 56 . . 4 . 16 24 Lose Combat Pursuer 30 | . 15 . . . . . . . 15 . . . . Influence Decreases 1712 | 15 90 30 . 16 363 217 79 . 15 87 13 242 545 Entered New Map 234 | . . . . . 58 53 15 . . . 7 . 101 Time Decay 920 | 15 75 30 . 16 155 161 21 . . 87 6 132 222 Lost Part 360 | . . . . . . 3 30 . 15 . . 90 222 Lost Ally 33 | . . . . . . . 13 . . . . 20 . Purge Threat 165 | . 15 . . . 150 . . . . . . . . Squads Dispatched 12 | . 1 . . . 3 1 . . 1 3 . 1 2 Investigation 2 | . . . . . 1 . . . . . . 1 . Extermination 4 | . . . . . . 1 . . . 2 . . 1 Reinforcement 6 | . 1 . . . 2 . . . 1 1 . . 1 Assault . | . . . . . . . . . . . . . . Garrison . | . . . . . . . . . . . . . . Intercept . | . . . . . . . . . . . . . . Searches Triggered . | . . . . . . . . . . . . . . Construction Impeded 1 | . . . . . . . . . . . . . 1 Haulers Reinforced . | . . . . . . . . . . . . . . Active Scanning Responses . | . . . . . . . . . . . . . . Cargo Convoy Interrupts . | . . . . . . . . . . . . . . Stealth | -11 -10 -10 -10 -9 -8 -7 -7 -7 -7 -6 -5 -5 -4 --------- Run | Yrd Mat Min Exi Min Mat Fac Was Fac DSF Fac Fac Ext Fac Distress Signals 2 | . . . . . . . . . . . . 1 1 Communications Jammed . | . . . . . . . . . . . . . . Distress Signals . | . . . . . . . . . . . . . . Times Spotted 99 | . 5 3 . 3 18 3 6 . 9 7 . 20 25 Peak Tracking Total 7 | . 3 3 . 3 5 1 5 . 4 2 . 6 7 Tactical Retreats 3 | . 1 . . . . . 1 . 1 . . . . Traps | -11 -10 -10 -10 -9 -8 -7 -7 -7 -7 -6 -5 -5 -4 ------- Run | Yrd Mat Min Exi Min Mat Fac Was Fac DSF Fac Fac Ext Fac Traps Triggered 11 | . 2 . . . . 2 . . 1 1 2 2 1 Indirectly . | . . . . . . . . . . . . . . Trap Hack Attempts . | . . . . . . . . . . . . . . Triggered . | . . . . . . . . . . . . . . Disarmed . | . . . . . . . . . . . . . . Reprogrammed . | . . . . . . . . . . . . . . Reused . | . . . . . . . . . . . . . . Traps Extracted . | . . . . . . . . . . . . . . Installed . | . . . . . . . . . . . . . . Triggered . | . . . . . . . . . . . . . . Machines | -11 -10 -10 -10 -9 -8 -7 -7 -7 -7 -6 -5 -5 -4 ---------- Run | Yrd Mat Min Exi Min Mat Fac Was Fac DSF Fac Fac Ext Fac Machines Disabled 10 | . . . . 1 4 1 . . . 1 . 1 2 Max in Single Turn 2 | . . . . 1 2 1 . . . 1 . 1 2 Machines Repaired . | . . . . . . . . . . . . . . Machines Dismantled 1 | . . . . . . 1 . . . . . . . Machines Sabotaged . | . . . . . . . . . . . . . . Overloaded Fab Kills . | . . . . . . . . . . . . . . Hacking | -11 -10 -10 -10 -9 -8 -7 -7 -7 -7 -6 -5 -5 -4 --------- Run | Yrd Mat Min Exi Min Mat Fac Was Fac DSF Fac Fac Ext Fac Machines Accessed 25 | . 4 . 2 . 4 4 . 1 . 4 2 4 . Terminals 17 | . 3 . . . 4 2 . 1 . 2 1 4 . Fabricators 2 | . . . . . . 1 . . . . 1 . . Repair Stations . | . . . . . . . . . . . . . . Recycling Units 2 | . 1 . . . . . . . . 1 . . . Scanalyzers 1 | . . . . . . 1 . . . . . . . Garrison Access 1 | . . . . . . . . . . 1 . . . Total Hacks 61 | . 8 . 4 . 14 9 . 5 . 6 2 13 . Successful 26 | . 4 . 4 . 4 3 . 1 . 2 2 6 . Failed 35 | . 4 . . . 10 6 . 4 . 4 . 7 . Catastrophic 10 | . 2 . . . 3 1 . . . 3 . 1 . Database Lockouts . | . . . . . . . . . . . . . . Manual 11 | . . . . . 7 . . . . . . 4 . Terminals 49 | . 7 . . . 14 5 . 5 . 4 1 13 . Fabricators 2 | . . . . . . 1 . . . . 1 . . Repair Stations . | . . . . . . . . . . . . . . Recycling Units 2 | . 1 . . . . . . . . 1 . . . Scanalyzers 3 | . . . . . . 3 . . . . . . . Garrison Access 1 | . . . . . . . . . . 1 . . . Terminal Hacks 21 | . 3 . 4 . 4 . . 1 . 2 1 6 . Record 6 | . . . 4 . 1 . . . . 1 . . . Robot Analysis 1 | . . . . . 1 . . . . . . . . Prototype ID Bank 1 | . 1 . . . . . . . . . . . . Open Door 4 | . . . . . . . . . . . 1 3 . Open DSF 1 | . . . . . . . . 1 . . . . . Alert Level 3 | . . . . . . . . . . 1 . 2 . Unreport Threat 3 | . 1 . . . 1 . . . . . . 1 . Locate Traps 1 | . . . . . 1 . . . . . . . . Registered Prototypes 1 | . 1 . . . . . . . . . . . . Fabricator Hacks 2 | . . . . . . 1 . . . . 1 . . Build 2 | . . . . . . 1 . . . . 1 . . Repair Station Hacks . | . . . . . . . . . . . . . . Recycling Unit Hacks 1 | . 1 . . . . . . . . . . . . Report Inventory 1 | . 1 . . . . . . . . . . . . Scanalyzer 2 | . . . . . . 2 . . . . . . . Retrieve Study 2 | . . . . . . 2 . . . . . . . Garrison Access Hacks . | . . . . . . . . . . . . . . Unauthorized Hacks . | . . . . . . . . . . . . . . Terminals . | . . . . . . . . . . . . . . Fabricators . | . . . . . . . . . . . . . . Repair Stations . | . . . . . . . . . . . . . . Recycling Units . | . . . . . . . . . . . . . . Scanalyzers . | . . . . . . . . . . . . . . Garrison Access . | . . . . . . . . . . . . . . Data Cores Recovered . | . . . . . . . . . . . . . . Used . | . . . . . . . . . . . . . . Hacking Detections 18 | . 3 . . . 4 3 . 1 . 4 . 3 . Full Trace Events 3 | . 1 . . . 1 . . . . . . 1 . Feedback Events . | . . . . . . . . . . . . . . Feedback Blocked . | . . . . . . . . . . . . . . Robot Schematics Acquired . | . . . . . . . . . . . . . . Robots Built . | . . . . . . . . . . . . . . Authchips . | . . . . . . . . . . . . . . Time . | . . . . . . . . . . . . . . Total Robot Build Rating . | . . . . . . . . . . . . . . Part Schematics Acquired . | . . . . . . . . . . . . . . Parts Built 4 | . . . . . . 2 . . . . 2 . . Authchips . | . . . . . . . . . . . . . . Time 197 | . . . . . . 58 . . . . 139 . . Total Part Build Rating 32 | . . . . . . 14 . . . . 18 . . Part Studies Acquired 1 | . . . . . . 1 . . . . . . . Parts Repaired . | . . . . . . . . . . . . . . Time . | . . . . . . . . . . . . . . Parts Recycled . | . . . . . . . . . . . . . . Recycled Matter . | . . . . . . . . . . . . . . Retrieved Matter . | . . . . . . . . . . . . . . Retrieved Components . | . . . . . . . . . . . . . . Parts Scanalyzed . | . . . . . . . . . . . . . . Part Schematics Acquired . | . . . . . . . . . . . . . . Parts Damaged . | . . . . . . . . . . . . . . Bothacking | -11 -10 -10 -10 -9 -8 -7 -7 -7 -7 -6 -5 -5 -4 ------------ Run | Yrd Mat Min Exi Min Mat Fac Was Fac DSF Fac Fac Ext Fac Used RIF Installer . | . . . . . . . . . . . . . . Robots Hacked . | . . . . . . . . . . . . . . Non-combat . | . . . . . . . . . . . . . . Combat . | . . . . . . . . . . . . . . Robot Hacks Applied . | . . . . . . . . . . . . . . Relay Couplers Released . | . . . . . . . . . . . . . . Fabnet Peak Effective % . | . . . . . . . . . . . . . . Robots Rewired . | . . . . . . . . . . . . . . Allies Hacked . | . . . . . . . . . . . . . . Hacks Repelled . | . . . . . . . . . . . . . . Allies | -11 -10 -10 -10 -9 -8 -7 -7 -7 -7 -6 -5 -5 -4 -------- Run | Yrd Mat Min Exi Min Mat Fac Was Fac DSF Fac Fac Ext Fac Total Allies 3 | . . . . . . . 1 . . . . 2 . Largest Group 1 | . . . . . . . 1 . . . . 1 . Highest-Rated Group 159 | . . . . . . . 31 . . . . 159 . Highest-Rated Ally 159 | . . . . . . . 31 . . . . 159 . Total Orders 2 | . . . . . . . . . . 2 . . . FOLLOW 1 | . . . . . . . . . . 1 . . . EXPLORE 1 | . . . . . . . . . . 1 . . . Ally Attacks 52 | . . . . . . . 2 . . . . 50 . Total Damage 1538 | . . . . . . . 21 . . . . 1517 . Kills 13 | . . . . . . . . . . . . 13 . Allies Corrupted . | . . . . . . . . . . . . . . Allies Melted . | . . . . . . . . . . . . . . Intel | -11 -10 -10 -10 -9 -8 -7 -7 -7 -7 -6 -5 -5 -4 ------- Run | Yrd Mat Min Exi Min Mat Fac Was Fac DSF Fac Fac Ext Fac Active Infowar (turns) 2376 | 17 139 . . . . . . . . 454 320 1446 . Optics 2204 | . . . . . . . . . . 454 320 1430 . Seismic 156 | 17 139 . . . . . . . . . . . . ECM 1266 | . . . . . . . . . . . . 1266 . Robot Analysis Total 1 | . . . . . 1 . . . . . . . . Derelict Logs Recovered 1 | . . 1 . . . . . . . . . . . Drone Launches 6 | . . . . . . . . . . 2 2 2 . Drone Recoveries 4 | . . . . . . . . . . 2 . 2 . Exploration | -11 -10 -10 -10 -9 -8 -7 -7 -7 -7 -6 -5 -5 -4 ------------- Run | Yrd Mat Min Exi Min Mat Fac Was Fac DSF Fac Fac Ext Fac Turns Passed 7592 | 134 341 247 667 449 1230 733 202 136 127 852 320 1606 548 Spaces Moved 4755 | 73 251 187 556 349 432 349 182 136 106 712 230 1036 156 Core 262 | 12 . . . . . . 117 17 . . . 40 76 Treads 680 | . . . . . 228 349 65 . . . . . 38 Legs 1608 | 61 251 187 556 349 204 . . . . . . . . Wheels 2205 | . . . . . . . . 119 106 712 230 996 42 Hover . | . . . . . . . . . . . . . . Flight . | . . . . . . . . . . . . . . Fastest Speed 50 | 50 120 120 120 120 120 160 50 50 100 100 130 50 50 Average Speed 128 | 117 120 120 120 120 145 160 90 93 100 107 130 133 228 Slowest Speed 1150 | 200 120 120 120 120 190 160 160 100 100 130 130 1150 600 Overloaded Moves . | . . . . . . . . . . . . . . Propulsion Burnouts . | . . . . . . . . . . . . . . Robots Hopped . | . . . . . . . . . . . . . . Potential Cave-ins . | . . . . . . . . . . . . . . Cave-ins Triggered . | . . . . . . . . . . . . . . Exploration Rate (%) 40 | 5 37 60 91 80 35 9 79 3 85 17 6 52 4 Regions Visited 13 Branch Regions 4 Pre-discovered Areas 2 | . . 1 1 . . . . . . . . . . Known Exits Taken 1 | . . . . . . . . 1 . . . . . Unknown Exits Taken 9 | 1 1 1 1 1 1 . . . . 1 1 1 . Scrap Searched 5 | . . 1 . 4 . . . . . . . . . Spaces Dug . | . . . . . . . . . . . . . . Terrain Destroyed 180 | . . . . 37 33 . 91 . . 4 . 3 12 Melee . | . . . . . . . . . . . . . . Projectile 14 | . . . . . 1 . 1 . . 4 . 3 5 AOE 166 | . . . . 37 32 . 90 . . . . . 7 Terrain Rammed . | . . . . . . . . . . . . . . Walls Destroyed . | . . . . . . . . . . . . . . Machines Disabled . | . . . . . . . . . . . . . . Actions | -11 -10 -10 -10 -9 -8 -7 -7 -7 -7 -6 -5 -5 -4 --------- Run | Yrd Mat Min Exi Min Mat Fac Was Fac DSF Fac Fac Ext Fac Total 5892 | 101 285 195 557 376 985 480 198 141 122 754 251 1199 248 Wait 739 | 9 27 2 . 13 501 82 . . . 5 1 93 6 Move 4743 | 72 250 186 555 348 431 349 181 135 105 711 229 1035 156 Hop . | . . . . . . . . . . . . . . Pick Up 35 | 5 4 . 1 3 8 5 . . . 6 . 3 . Fast Attach 66 | 7 . . . 1 3 6 1 6 6 6 2 10 18 Attach 18 | . 1 . . . 5 4 . . . 4 . 2 2 Detach 3 | . . . . 1 . . . . . . . 2 . Swap 10 | . . . . 1 5 2 . . . . 1 1 . Drop 31 | . . . 1 4 6 10 . . 2 2 2 4 . Fire 147 | 8 3 7 . 4 25 6 16 . 1 11 . 27 39 Melee 40 | . . . . . . . . . 1 9 . 6 24 Ram 4 | . . . . . . . . . 1 . . . 3 Kick 1 | . . . . 1 . . . . . . . . . Crush 1 | . . . . . 1 . . . . . . . . Escape Stasis 38 | . . . . . . . . . 6 . 16 16 . Rewire . | . . . . . . . . . . . . . . Trap . | . . . . . . . . . . . . . . Miscellaneous 16 | . . . . . . 16 . . . . . . . Route ------- -11/Scrapyard -10/Materials -10/Mines -10/Exiles -9/Mines -8/Materials -7/Factory -7/Waste -7/Factory -7/DSF -6/Factory -5/Factory -5/Extension -4/Factory History --------- Turn | Location | Event 25 | -11/Scrapyard | Discovered new exit (range 15) 135 | -11/Scrapyard | Entered Materials 214 | -10/Materials | Discovered new exit (range 15) 306 | -10/Materials | Build established: Mutant 476 | -10/Materials | Entered Mines 480 | -10/Mines | Met a Derelict bent on vengeance 702 | -10/Mines | Learned location of Recycling (-7) 718 | -10/Mines | Deemed a non-threat by the Exiles lab entrance 718 | -10/Mines | Discovered new exit (range 5) 723 | -10/Mines | Entered Exiles 755 | -10/Exiles | Met 8R-AWN 779 | -10/Exiles | Met EX-HEX 827 | -10/Exiles | Met EX-DEC 858 | -10/Exiles | Learned location of Zion (-6) 905 | -10/Exiles | Discovered new exit (range 14) 1004 | -10/Exiles | Met EX-BIN 1022 | -10/Exiles | Aligned with FarCom system 1023 | -10/Exiles | Given EX-Vault access code 1204 | -10/Exiles | Visited The Gauntlet 1390 | -10/Exiles | Entered Mines 1569 | -9/Mines | Received a Rocket Launcher from a helpful Derelict 1808 | -9/Mines | Discovered new exit (range 8) 1839 | -9/Mines | Entered Materials 1839 | -8/Materials | Evolved 4 slots: Propulsion x1, Utility x2, Weapon x1 2147 | -8/Materials | Build established: Skirmisher 3008 | -8/Materials | Discovered new exit (range 10) 3069 | -8/Materials | Entered Factory 3069 | -7/Factory | Evolved 2 slots: Utility x1, Weapon x1 3248 | -7/Factory | Fabricated Hardcell Cannon (x2) 3493 | -7/Factory | Build established: Scavenger-Skirmisher 3802 | -7/Factory | Sucked down chute 3802 | -7/Factory | Entered Waste 3803 | -7/Waste | Met a frightened Derelict 3817 | -7/Waste | EMP discharged 3850 | -7/Waste | Spotted C-40 Crusher 3860 | -7/Waste | Destroyed C-40 Crusher 3874 | -7/Waste | Spotted C-40 Crusher 3914 | -7/Waste | Spotted C-40 Crusher 3917 | -7/Waste | EMP discharged 3917 | -7/Waste | System corruption reached 10% 3931 | -7/Waste | Crushed by Compactor (1 part destroyed, 1 dropped) 3934 | -7/Waste | Crushed by Compactor (1 part destroyed, 1 dropped) 3937 | -7/Waste | Crushed by Compactor (1 part destroyed, 2 dropped) 3940 | -7/Waste | Crushed by Compactor (1 part destroyed, 2 dropped) 3943 | -7/Waste | Crushed by Compactor (1 part destroyed, 1 dropped) 3948 | -7/Waste | Crushed by Compactor (1 part destroyed, 1 dropped) 3955 | -7/Waste | Spotted C-40 Crusher 3958 | -7/Waste | Spotted C-40 Crusher 3961 | -7/Waste | Spotted C-40 Crusher 3979 | -7/Waste | Lost 6 parts (2n2u2w) 3997 | -7/Waste | Discovered new exit (range 13) 4004 | -7/Waste | Entered Factory 4138 | -7/Factory | Identified exit to DSF 4140 | -7/Factory | Entered DSF 4189 | -7/DSF | Additional patrols routed to DSF 4241 | -7/DSF | Build established: Mutant 4251 | -7/DSF | Core integrity fell below 50% 4252 | -7/DSF | Discovered new exit (range 15) 4267 | -7/DSF | Entered Factory 4267 | -6/Factory | Evolved 2 slots: Power x1, Utility x1 4962 | -6/Factory | Discovered new exit (range 15) 5119 | -6/Factory | Entered another Factory area 5119 | -5/Factory | Evolved 2 slots: Propulsion x1, Utility x1 5310 | -5/Factory | Fabricated Quantum Reactor (x2) 5418 | -5/Factory | Discovered new exit (range 10) 5439 | -5/Factory | Entered Extension 5439 | -5/Extension | Accompanied by 2 allies 5489 | -5/Extension | Disrupted transfer network 5546 | -5/Extension | Build established: Hacker-Skirmisher 5552 | -5/Extension | Rescued a captive Derelict 6466 | -5/Extension | Spotted B-75 Beast 6793 | -5/Extension | Rescued A7 6848 | -5/Extension | Spotted B-75 Beast 6856 | -5/Extension | Allies destroyed B-75 Beast 6930 | -5/Extension | System corruption reached 10% 6949 | -5/Extension | Lost 9 parts (2p1n3u3w) 6963 | -5/Extension | Discovered new exit (range 3) 7045 | -5/Extension | Entered Factory 7045 | -4/Factory | Evolved 2 slots: Utility x1, Weapon x1 7157 | -4/Factory | System corruption reached 10% 7215 | -4/Factory | Lost 13 parts (2p1n4u6w) 7445 | -4/Factory | Build established: Mutant 7470 | -4/Factory | Core integrity fell below 50% 7500 | -4/Factory | Lost 5 parts (1u4w) 7576 | -4/Factory | Core integrity fell below 20% 7584 | -4/Factory | System corruption reached 30% 7593 | -4/Factory | Destroyed by S-27 Virus with Autogun Last Messages --------------- 07568_ Slug penetrates Wall. 07569_ System corrupted: Katana rejected. 07571_ Slug penetrates U-05 Engineer. 07571_ U-05 Engineer destroyed. 07571_ Penetrated by Slug. 07573_ K-01 Serf collects debris. 07574_ Imp. Medium Armor Plating destroyed. 07574_ Acquired Katana. 07575_ Slug penetrates H-77 Assassin. 07575_ Mic. Fission Core destroyed. 07578_ S-27 Virus destroyed. 07578_ Imp. Heat Sink destroyed. 07580_ Katana destroyed. 07581_ Acquired Lgt. Nuclear Core. 07583_ Slammed into S-27 Virus. 07583_ Destabilizing: System corrupted (+2). 07586_ Lgt. Nuclear Core destroyed. 07587_ System corrupted: Matter fused (-8). 07588_ Slug penetrates S-27 Virus. 07588_ S-27 Virus destroyed. Map ----- +----------------------------------------------------+ | ?????????????????????????????????????????????????? | | ?????????????????????????????????????????????????? | | ?????????????????????????????????????????????????? | | ?????????????????????????????????????????????????? | | ?????????????????????????????????????????????????? | | ?????????????????????????????????????????????????? | | ?????????????????????????????????????????????????? | | ?????????????????????????????????????????????????? | | ?????????????????????????????????????????????????? | | ??????????????????????????????????####???????????? | | ?????????????????????????????????? ????????? | | ?????????????????????????????????? "???????? | | ??????????????????????????????#### ???????? | | ????????????????????????????? "???????? | | ?????????????????????????????? "???????? | | ?????????????????????????????? ????????? | | ??????????????????????????????? ?????????? | | ??????????????????????????????? ??????????? | | ???????????????????????????????# #???????????? | | ?????????????????############### #???????????? | | ?????????????????# # #???????????? | | ?????????????????# # #???????????? | | ?????????????????# # #???????????? | | ?????????????????# s s #???????????? | | ?????????????????# s # #???????????? | | ?????????????????# @ # [% #???????????? | | ?????????????????############### = #???????????? | | ???????????????????????????????# #???????????? | | ???????????????????????????????# #???????????? | | ???????????????????????????????# =%#???????????? | | ???????????????????????????????+ #?"?????????? | | ???????????????????????????????# #?""????????? | | ???????????????????????????????# h #?? ???????? | | ???????????????????????????????# h #####+####### | | ???????????????????????????????# | | ?????????????????????????Y?????# | | ???????????????????????Y???????# | | ???????????????????????????????# *% | | ???????????????????????????????# ! | | ???????????????????????????????##################+ | | ???????????????????????????????????????????# | | ???????????????????????????????????????????# | | ???????????????????????????????????????????# | | ???????????????????????????????????????????# | | ???????????????????????????????????????????# | | ???????????????????????????????????????????# | | ???????????????????????????????????????????# | | ???????????????????????????????????????????# ! | | ???????????????????????????????????????????# ! | | ???????????????????????????????????????????####### | +----------------------------------------------------+ Best States ------------- Heat Dissipation 62 Energy Generation 29 Energy Capacity 365 Matter Stores 405 Matter Capacity 450 Sight Range 22 Terrain Scan Density 10 ECM Strength 2 Base Temperature (-) 100 Armor Coverage 300 Resistance: TH 15 Evasion (%) 55 Targeting Accuracy 5 Recoil Reduction 3 Offensive Hacking 10 Defensive Hacking 10 Item Schematics ----------------- None Robot Schematics ------------------ None Fabricated ------------ Hardcell Cannon | x2 | -7/Factory | Preloaded Quantum Reactor | x2 | -5/Factory | Preloaded Repaired ---------- Nothing Studied --------- Gauss Rifle | -7/Factory | Hacked Alien Tech Used ----------------- None Achievements -------------- DIY Cooler Prison Break Sixth Sense Challenges ------------ None Game ------ Seed TargetingJunkCanceller Manual? 0 Play Time 01:51:45 Cumulative 26.2 hours Start 2025.11.19 @ 21:26:12 End 2025.11.20 @ 20:20:11 Sessions 5 Manual Loads 0 Difficulty Rogue Special Mode None Game No. 26 Rogue 26 Adventurer 0 Explorer 0 Win Type - Total 0 Types 0/0/0/0/0/0/0/0/0/0 Lore% 12 Gallery% 18 Achievement% 17 Wizard Run 0 Options --------- Layout 1 ASCII 0 Keyboard 0 Movement Arrows Keybinds 0 Fullscreen 2 Font 48/Smallcaps Map View 50x35 Zoom Use 0% Tactical HUD 1 Map Filters NONE Filters NONE Steam 1 RUN: 783a9737-195f-4b4c-884c-ae68300dc4f6